{"text_format":"3","workbook":"xlsx","n_sheets":1,"sheets":["Sheet1"],"read":"whole","date_system":"1900"}

{"sheet":"Sheet1","index":0,"n_rows":41,"n_cols":6,"rows_kept":41,"merged":[[8,0,8,5],[16,0,16,5],[20,0,20,5]]}
[]
[null,"Awards will be made by line items. "]
[]
[null," "," "]
[null," "," "]
[null," "]
[]
["No.","Item","Quantity","Unit","Unit Price","Total"]
["Section I"]
[1,"14 AWG 7 Conductor IMSA Cable",20000,"LF",null,{"$f":"C10*E10","v":0}]
[2,"14 AWG 5 Conductor IMSA Cable",5000,"LF",null,0]
[3,"14 AWG 3 Conductor IMSA Cable",21000,"LF",null,0]
[4,"Opticom Detector Cable",10000,"LF",null,0]
[5,"Composite Coaxial Video Detection Cable",10000,"LF",null,0]
[6,"3 Conductor Video Cable",10000,"LF",null,0]
[7,"Loop Lead In Cable",15000,"LF",null,0]
["Section II"]
[8,"18 AWG 12 Conductor Cable",2000,"LF",null,{"$f":"C18*E18","v":0}]
[9,"Cat 6 Cable",5000,"LF",null,{"$f":"C19*E19","v":0}]
[10,"10 AWG 3 Boat Cable",4000,"LF",null,{"$f":"C20*E20","v":0}]
["Section III"]
[11,"6 AWG Stranded RHW-2 Wire (options: Black, White, Red, Green)",20000,"LF",null,{"$f":"C22*E22","v":0}]
[12,"8 AWG Stranded RHW-2 Wire (options: Black, White, Red, Green)",5000,"LF",null,0]
[13,"10 AWG Stranded RHW -2 Wire (options: Black, White, Red, Green)",20000,"LF",null,0]
[14,"12 AWG Stranded THWN Wire (Black, White, Red, Green)",2000,"LF",null,0]
[15,"14 AWG Stranded THWN Wire (Black, White, Red, Green)",2000,"LF",null,0]
[16,"16 AWG Stranded THWN Wire (Black, White, Red, Green)",2000,"LF",null,0]
[17,"18 AWG Stranded THWN Wire (Black, White, Red, Green)",2000,"LF",null,0]
[18,"6 AWG Solid Bare Copper",500,"LF",null,0]
[19,"6 AWG Stranded Bare Copper",1500,"LF",null,0]
[{"$nulls":5},{"$f":"SUM(F10:F30)","v":{"v":0,"d":"$0.00"}}]
{"$rows_empty":7}
[" "," "]
[]
[" "," "]